[Event "*** Titled Tuesday Blitz"]
[Site "Chess.com"]
[Date "2020.04.14"]
[Round "3"]
[White "Zubrrr"]
[Black "adiosabu"]
[Result "0-1"]
[WhiteElo "2716"]
[BlackElo "2535"]
[TimeControl "180+1"]
[EndTime "10:28:09 PDT"]
[Termination "adiosabu won on time"]

1. c4 {[%clk 0:03:00]} 1... e5 {[%clk 0:02:58.6]} 2. g3 {[%clk 0:02:58.3]} 2...
Nf6 {[%clk 0:02:57.8]} 3. Bg2 {[%clk 0:02:58.3]} 3... Be7 {[%clk 0:02:50.5]} 4.
Nc3 {[%clk 0:02:55.5]} 4... O-O {[%clk 0:02:50.1]} 5. Nf3 {[%clk 0:02:55]} 5...
d6 {[%clk 0:02:45.3]} 6. O-O {[%clk 0:02:52.5]} 6... h6 {[%clk 0:02:42.6]} 7. d4
{[%clk 0:02:51.6]} 7... Nbd7 {[%clk 0:02:42.4]} 8. e4 {[%clk 0:02:35.8]} 8... c6
{[%clk 0:02:41.9]} 9. h3 {[%clk 0:02:35.4]} 9... Qc7 {[%clk 0:02:40.6]} 10. Be3
{[%clk 0:02:34.4]} 10... a6 {[%clk 0:02:40.1]} 11. Rc1 {[%clk 0:02:24.1]} 11...
Re8 {[%clk 0:02:36.9]} 12. Re1 {[%clk 0:01:40.2]} 12... Qb8 {[%clk 0:02:18.7]}
13. a3 {[%clk 0:01:26.6]} 13... b5 {[%clk 0:02:17.3]} 14. cxb5 {[%clk
0:01:10.9]} 14... axb5 {[%clk 0:02:15.3]} 15. Nh4 {[%clk 0:01:03.3]} 15... b4
{[%clk 0:01:55.8]} 16. axb4 {[%clk 0:01:02]} 16... Qxb4 {[%clk 0:01:55.5]} 17.
Nf5 {[%clk 0:00:54.8]} 17... Bf8 {[%clk 0:01:54.7]} 18. Rc2 {[%clk 0:00:53.5]}
18... Nb6 {[%clk 0:01:29]} 19. dxe5 {[%clk 0:00:39.5]} 19... dxe5 {[%clk
0:01:29.9]} 20. Bc1 {[%clk 0:00:39.3]} 20... Nc4 {[%clk 0:01:24.2]} 21. g4
{[%clk 0:00:32.5]} 21... Be6 {[%clk 0:01:04.7]} 22. Qf3 {[%clk 0:00:25.4]} 22...
Nh7 {[%clk 0:01:01.3]} 23. h4 {[%clk 0:00:23.5]} 23... Rad8 {[%clk 0:00:41]} 24.
g5 {[%clk 0:00:20.3]} 24... hxg5 {[%clk 0:00:40.8]} 25. hxg5 {[%clk 0:00:20.8]}
25... g6 {[%clk 0:00:41]} 26. Nh6+ {[%clk 0:00:16.3]} 26... Bxh6 {[%clk
0:00:40]} 27. gxh6 {[%clk 0:00:17.2]} 27... Na5 {[%clk 0:00:33.4]} 28. Rce2
{[%clk 0:00:12.2]} 28... Nb3 {[%clk 0:00:32]} 29. Be3 {[%clk 0:00:09.3]} 29...
Nd4 {[%clk 0:00:31.4]} 30. Bxd4 {[%clk 0:00:08.1]} 30... exd4 {[%clk 0:00:30.7]}
31. Nd1 {[%clk 0:00:07.7]} 31... d3 {[%clk 0:00:30.1]} 32. Re3 {[%clk
0:00:06.9]} 32... d2 {[%clk 0:00:29.9]} 33. Rf1 {[%clk 0:00:04.9]} 33... Bc4
{[%clk 0:00:26.5]} 34. Rc3 {[%clk 0:00:04.5]} 34... Bxf1 {[%clk 0:00:26]} 35.
Bxf1 {[%clk 0:00:05.4]} 35... Qxe4 {[%clk 0:00:25.7]} 0-1

[Event "*** Titled Tuesday Blitz"]
[Site "Chess.com"]
[Date "2020.04.14"]
[Round "3"]
[White "Vojtastr"]
[Black "Harsha_Bharathakoti"]
[Result "0-1"]
[WhiteElo "2478"]
[BlackElo "2802"]
[TimeControl "180+1"]
[EndTime "10:28:10 PDT"]
[Termination "Harsha_Bharathakoti won by resignation"]

1. c4 {[%clk 0:03:00.9]} 1... f5 {[%clk 0:02:51.8]} 2. b3 {[%clk 0:02:59.9]}
2... Nf6 {[%clk 0:02:52.5]} 3. Bb2 {[%clk 0:03:00.2]} 3... g6 {[%clk 0:02:53.3]}
4. h3 {[%clk 0:02:59.1]} 4... Bg7 {[%clk 0:02:53.7]} 5. g4 {[%clk 0:02:59.6]}
5... d6 {[%clk 0:02:52.9]} 6. Nf3 {[%clk 0:02:39.2]} 6... e5 {[%clk 0:02:52]} 7.
Qc2 {[%clk 0:02:33.6]} 7... Nc6 {[%clk 0:02:49.6]} 8. e3 {[%clk 0:02:30.9]} 8...
fxg4 {[%clk 0:02:33]} 9. hxg4 {[%clk 0:02:31.8]} 9... Bxg4 {[%clk 0:02:33.8]}
10. Bg2 {[%clk 0:02:13]} 10... Bf5 {[%clk 0:02:32.9]} 11. Qd1 {[%clk 0:02:08.8]}
11... Nb4 {[%clk 0:02:33.3]} 12. O-O {[%clk 0:01:44.9]} 12... Nd3 {[%clk
0:02:33.5]} 13. Ba3 {[%clk 0:01:39.3]} 13... O-O {[%clk 0:02:25.4]} 14. Nc3
{[%clk 0:01:36.9]} 14... Qd7 {[%clk 0:02:18.9]} 15. Ng5 {[%clk 0:01:28.2]} 15...
Bh6 {[%clk 0:01:48]} 16. Nge4 {[%clk 0:01:24.4]} 16... Bh3 {[%clk 0:01:48.3]}
17. Qf3 {[%clk 0:01:13.6]} 17... Bxg2 {[%clk 0:01:43.8]} 18. Qxg2 {[%clk
0:01:14.5]} 18... Nxe4 {[%clk 0:01:27.4]} 19. Nxe4 {[%clk 0:01:12.6]} 19... Bg7
{[%clk 0:01:24.2]} 20. Ng3 {[%clk 0:01:00.2]} 20... Qc6 {[%clk 0:01:11.6]} 21.
f3 {[%clk 0:00:37]} 21... Qa6 {[%clk 0:01:03.7]} 22. Qe2 {[%clk 0:00:36.3]}
22... Nf4 {[%clk 0:00:57]} 23. exf4 {[%clk 0:00:36.5]} 23... Qxa3 {[%clk
0:00:57.7]} 24. f5 {[%clk 0:00:25.9]} 24... gxf5 {[%clk 0:00:44.2]} 25. Nh5
{[%clk 0:00:25.9]} 25... Bh6 {[%clk 0:00:34.4]} 26. Kh1 {[%clk 0:00:22.6]} 26...
Kh8 {[%clk 0:00:33]} 27. f4 {[%clk 0:00:20.5]} 27... Qc5 {[%clk 0:00:30.6]} 28.
Rg1 {[%clk 0:00:18.8]} 28... Rg8 {[%clk 0:00:29.9]} 29. Rxg8+ {[%clk 0:00:17.2]}
29... Rxg8 {[%clk 0:00:30.8]} 30. Qd3 {[%clk 0:00:17.1]} 30... Qc6+ {[%clk
0:00:30.5]} 31. Qd5 {[%clk 0:00:15.3]} 31... Qxd5+ {[%clk 0:00:30.2]} 32. cxd5
{[%clk 0:00:16.2]} 32... Rg4 {[%clk 0:00:26.6]} 33. Nf6 {[%clk 0:00:13.7]} 33...
Rxf4 {[%clk 0:00:24.9]} 34. Rg1 {[%clk 0:00:13.6]} 34... Rh4+ {[%clk 0:00:25.5]}
35. Kg2 {[%clk 0:00:13.9]} 35... Bg5 {[%clk 0:00:21.6]} 36. Ne8 {[%clk
0:00:13.7]} 36... Rg4+ {[%clk 0:00:22.3]} 37. Kf1 {[%clk 0:00:13.4]} 37... Rxg1+
{[%clk 0:00:23.2]} 38. Kxg1 {[%clk 0:00:14.3]} 38... Bd8 {[%clk 0:00:24.1]} 39.
Nf6 {[%clk 0:00:13.9]} 39... Bxf6 {[%clk 0:00:23.5]} 0-1

[Event "*** Titled Tuesday Blitz"]
[Site "Chess.com"]
[Date "2020.04.14"]
[Round "3"]
[White "ulkaf961"]
[Black "AshotParvanyan"]
[Result "0-1"]
[WhiteElo "2349"]
[BlackElo "2590"]
[TimeControl "180+1"]
[EndTime "10:28:10 PDT"]
[Termination "AshotParvanyan won on time"]

1. b3 {[%clk 0:03:00.9]} 1... Nf6 {[%clk 0:02:56.2]} 2. Bb2 {[%clk 0:03:01.6]}
2... g6 {[%clk 0:02:56.6]} 3. g3 {[%clk 0:03:02]} 3... Bg7 {[%clk 0:02:56.5]} 4.
Bg2 {[%clk 0:03:02.7]} 4... O-O {[%clk 0:02:56.4]} 5. Nf3 {[%clk 0:03:03.2]}
5... d6 {[%clk 0:02:56.3]} 6. O-O {[%clk 0:03:03.7]} 6... e5 {[%clk 0:02:56.1]}
7. d3 {[%clk 0:03:00.8]} 7... Re8 {[%clk 0:02:54.3]} 8. Nbd2 {[%clk 0:02:59.5]}
8... Nc6 {[%clk 0:02:52]} 9. e4 {[%clk 0:02:57.8]} 9... Be6 {[%clk 0:02:49.8]}
10. Ng5 {[%clk 0:02:56.6]} 10... Bg4 {[%clk 0:02:48.6]} 11. f3 {[%clk
0:02:56.1]} 11... Bd7 {[%clk 0:02:47.8]} 12. f4 {[%clk 0:02:56]} 12... Ng4
{[%clk 0:02:22.1]} 13. Qf3 {[%clk 0:01:44.8]} 13... Nd4 {[%clk 0:01:45]} 14.
Bxd4 {[%clk 0:01:43.3]} 14... exd4 {[%clk 0:01:45.9]} 15. Nc4 {[%clk 0:00:48]}
15... h6 {[%clk 0:01:22.1]} 16. Nxf7 {[%clk 0:00:46.7]} 16... Kxf7 {[%clk
0:01:19.7]} 17. f5 {[%clk 0:00:47.2]} 17... Ne5 {[%clk 0:01:04.6]} 18. fxg6+
{[%clk 0:00:38.5]} 18... Kxg6 {[%clk 0:00:57.4]} 19. Nxe5+ {[%clk 0:00:27.6]}
19... dxe5 {[%clk 0:00:48.1]} 20. Qf7+ {[%clk 0:00:15.2]} 20... Kh7 {[%clk
0:00:47.9]} 21. Qh5 {[%clk 0:00:15.6]} 21... Be6 {[%clk 0:00:37]} 22. h4 {[%clk
0:00:14.5]} 22... Qe7 {[%clk 0:00:31]} 23. Rf2 {[%clk 0:00:09.5]} 23... Rf8
{[%clk 0:00:29.7]} 24. Raf1 {[%clk 0:00:08.7]} 24... Rxf2 {[%clk 0:00:29.2]} 25.
Rxf2 {[%clk 0:00:09.5]} 25... Rf8 {[%clk 0:00:29]} 26. Bf3 {[%clk 0:00:09.5]}
26... Qf7 {[%clk 0:00:25.9]} 27. Qxf7 {[%clk 0:00:06]} 27... Rxf7 {[%clk
0:00:26.8]} 28. Kg2 {[%clk 0:00:05.1]} 28... Bf8 {[%clk 0:00:24.1]} 29. Rf1
{[%clk 0:00:03.5]} 29... a5 {[%clk 0:00:23]} 30. g4 {[%clk 0:00:03.4]} 30... Be7
{[%clk 0:00:21.9]} 31. Kg3 {[%clk 0:00:03.7]} 31... Rf4 {[%clk 0:00:20.8]} 32.
Rh1 {[%clk 0:00:03.2]} 32... Kg7 {[%clk 0:00:20.3]} 0-1

[Event "*** Titled Tuesday Blitz"]
[Site "Chess.com"]
[Date "2020.04.14"]
[Round "3"]
[White "erlesfar"]
[Black "IwkooO"]
[Result "0-1"]
[WhiteElo "2268"]
[BlackElo "2536"]
[TimeControl "180+1"]
[EndTime "10:28:10 PDT"]
[Termination "IwkooO won on time"]

1. e4 {[%clk 0:03:00.9]} 1... c5 {[%clk 0:03:00.3]} 2. d4 {[%clk 0:02:57.8]}
2... cxd4 {[%clk 0:03:00]} 3. c3 {[%clk 0:02:56.6]} 3... Nf6 {[%clk 0:02:55.3]}
4. e5 {[%clk 0:02:55.4]} 4... Nd5 {[%clk 0:02:55.8]} 5. Nf3 {[%clk 0:02:55]}
5... Nc6 {[%clk 0:02:54.3]} 6. Bc4 {[%clk 0:02:54]} 6... Nb6 {[%clk 0:02:52.8]}
7. Bb3 {[%clk 0:02:53.4]} 7... d5 {[%clk 0:02:33.2]} 8. exd6 {[%clk 0:02:52.5]}
8... Qxd6 {[%clk 0:02:30.7]} 9. O-O {[%clk 0:02:50.3]} 9... dxc3 {[%clk
0:02:19.6]} 10. Nxc3 {[%clk 0:02:45.2]} 10... Qxd1 {[%clk 0:02:14.4]} 11. Rxd1
{[%clk 0:02:43.8]} 11... Bg4 {[%clk 0:01:53.5]} 12. Nb5 {[%clk 0:02:37.7]} 12...
Rc8 {[%clk 0:01:53.9]} 13. Ng5 {[%clk 0:01:59.3]} 13... e6 {[%clk 0:01:11.8]}
14. f3 {[%clk 0:01:55.3]} 14... Bc5+ {[%clk 0:01:11.3]} 15. Kh1 {[%clk 0:01:51]}
15... Bf5 {[%clk 0:01:11.7]} 16. g4 {[%clk 0:01:26.7]} 16... Bg6 {[%clk
0:01:09]} 17. h4 {[%clk 0:01:20]} 17... h6 {[%clk 0:01:06.5]} 18. Nxe6 {[%clk
0:00:46.7]} 18... fxe6 {[%clk 0:01:06.3]} 19. Bxe6 {[%clk 0:00:46.2]} 19... Rd8
{[%clk 0:00:56.1]} 20. Re1 {[%clk 0:00:44.6]} 20... Kf8 {[%clk 0:00:55.6]} 21.
Bf4 {[%clk 0:00:39.9]} 21... Bf7 {[%clk 0:00:53.5]} 22. Rac1 {[%clk 0:00:34.2]}
22... Bb4 {[%clk 0:00:50]} 23. Re2 {[%clk 0:00:24.7]} 23... Bxe6 {[%clk
0:00:49.9]} 24. Rxe6 {[%clk 0:00:23.6]} 24... Kf7 {[%clk 0:00:50.6]} 25. Re4
{[%clk 0:00:18.8]} 25... Rhe8 {[%clk 0:00:50.5]} 26. Rxe8 {[%clk 0:00:15]} 26...
Rxe8 {[%clk 0:00:50.1]} 27. a3 {[%clk 0:00:14.6]} 27... Bf8 {[%clk 0:00:49.8]}
28. Nc3 {[%clk 0:00:14.6]} 28... Nc4 {[%clk 0:00:46.8]} 29. Ne4 {[%clk
0:00:12.7]} 29... Nxb2 {[%clk 0:00:46.1]} 30. Rb1 {[%clk 0:00:13]} 30... Bxa3
{[%clk 0:00:44.2]} 31. Nc3 {[%clk 0:00:12]} 31... Nd3 {[%clk 0:00:39.1]} 32.
Rxb7+ {[%clk 0:00:10.4]} 32... Re7 {[%clk 0:00:39.7]} 33. Rxe7+ {[%clk
0:00:10.4]} 33... Bxe7 {[%clk 0:00:39.8]} 34. Be3 {[%clk 0:00:07.7]} 34... a5
{[%clk 0:00:40]} 35. Nd5 {[%clk 0:00:07.8]} 35... Bc5 {[%clk 0:00:40]} 36. Bd2
{[%clk 0:00:07]} 36... a4 {[%clk 0:00:40.2]} 37. Bc3 {[%clk 0:00:04.1]} 37... a3
{[%clk 0:00:40]} 0-1

[Event "*** Titled Tuesday Blitz"]
[Site "Chess.com"]
[Date "2020.04.14"]
[Round "3"]
[White "NiranjanNavalgund"]
[Black "tgpgoat"]
[Result "1-0"]
[WhiteElo "2427"]
[BlackElo "2101"]
[TimeControl "180+1"]
[EndTime "10:28:10 PDT"]
[Termination "NiranjanNavalgund won by resignation"]

1. e4 {[%clk 0:03:00.9]} 1... c5 {[%clk 0:02:59.6]} 2. Nf3 {[%clk 0:02:59.8]}
2... Nc6 {[%clk 0:02:59.3]} 3. d4 {[%clk 0:02:59.9]} 3... cxd4 {[%clk
0:03:00.2]} 4. Nxd4 {[%clk 0:03:00.7]} 4... e5 {[%clk 0:02:57.8]} 5. Nb5 {[%clk
0:03:00]} 5... d6 {[%clk 0:02:57.9]} 6. c4 {[%clk 0:02:54]} 6... a6 {[%clk
0:02:52.1]} 7. N5a3 {[%clk 0:02:53.6]} 7... Be7 {[%clk 0:02:34.9]} 8. Nc3 {[%clk
0:02:53.3]} 8... f5 {[%clk 0:02:30.2]} 9. exf5 {[%clk 0:02:52.5]} 9... Bxf5
{[%clk 0:02:29.8]} 10. Bd3 {[%clk 0:02:52.6]} 10... Be6 {[%clk 0:02:19.8]} 11.
Nd5 {[%clk 0:02:50.3]} 11... Nf6 {[%clk 0:02:17.7]} 12. Nxe7 {[%clk 0:02:49.2]}
12... Qxe7 {[%clk 0:02:14.4]} 13. O-O {[%clk 0:02:49.3]} 13... O-O {[%clk
0:02:14.1]} 14. Nc2 {[%clk 0:02:49.2]} 14... Qf7 {[%clk 0:02:11.5]} 15. Bg5
{[%clk 0:02:48.1]} 15... Bxc4 {[%clk 0:02:05.6]} 16. Bxc4 {[%clk 0:02:48.2]}
16... Qxc4 {[%clk 0:02:05.5]} 17. Ne3 {[%clk 0:02:48.3]} 17... Qe6 {[%clk
0:02:03.6]} 18. Bxf6 {[%clk 0:02:43.8]} 18... Rxf6 {[%clk 0:02:02]} 19. Nd5
{[%clk 0:02:43.7]} 19... Rf7 {[%clk 0:01:56.5]} 20. Rc1 {[%clk 0:02:43.2]} 20...
Raf8 {[%clk 0:01:53.6]} 21. f3 {[%clk 0:02:39.6]} 21... Nd4 {[%clk 0:01:50.1]}
22. Ne3 {[%clk 0:02:39.7]} 22... Qxa2 {[%clk 0:01:48.8]} 23. Nc4 {[%clk
0:02:34.4]} 23... b5 {[%clk 0:01:19.7]} 24. Nxd6 {[%clk 0:01:49.4]} 24... Rd7
{[%clk 0:01:00.9]} 25. Ne4 {[%clk 0:01:43.2]} 25... Nxf3+ {[%clk 0:00:57.8]} 26.
Qxf3 {[%clk 0:01:43]} 26... Rxf3 {[%clk 0:00:50.7]} 27. Rc8+ {[%clk 0:01:42.7]}
27... Kf7 {[%clk 0:00:45.2]} 28. Rxf3+ {[%clk 0:01:42.8]} 28... Ke7 {[%clk
0:00:41]} 29. Ng3 {[%clk 0:01:31.2]} 29... Rd1+ {[%clk 0:00:38.2]} 30. Nf1
{[%clk 0:01:31.1]} 30... Qxb2 {[%clk 0:00:35.1]} 31. Rcf8 {[%clk 0:01:27.9]}
31... Qd4+ {[%clk 0:00:34.7]} 32. Kh1 {[%clk 0:01:27.9]} 32... b4 {[%clk
0:00:34]} 33. R3f7+ {[%clk 0:01:23.2]} 33... Ke6 {[%clk 0:00:32.7]} 34. h3
{[%clk 0:01:20.7]} 34... b3 {[%clk 0:00:31.4]} 35. Rb7 {[%clk 0:01:20.7]} 35...
b2 {[%clk 0:00:31.4]} 36. Re8+ {[%clk 0:01:19.6]} 36... Kf5 {[%clk 0:00:30.7]}
37. Kh2 {[%clk 0:01:11.6]} 37... Rxf1 {[%clk 0:00:29.9]} 38. Rf8+ {[%clk
0:01:11.5]} 38... Ke4 {[%clk 0:00:27.7]} 39. Rxf1 {[%clk 0:01:11.5]} 39... Kd3
{[%clk 0:00:17.4]} 40. Rxg7 {[%clk 0:00:52.9]} 40... e4 {[%clk 0:00:08.4]} 41.
Rd1+ {[%clk 0:00:48.5]} 41... Kc3 {[%clk 0:00:08.3]} 42. Rc7+ {[%clk 0:00:46.6]}
42... Kb4 {[%clk 0:00:02.9]} 43. Rxd4+ {[%clk 0:00:45.3]} 43... Kb5 {[%clk
0:00:03.2]} 1-0

[Event "*** Titled Tuesday Blitz"]
[Site "Chess.com"]
[Date "2020.04.14"]
[Round "3"]
[White "viktorko131"]
[Black "MattyDPerrine"]
[Result "0-1"]
[WhiteElo "2132"]
[BlackElo "2340"]
[TimeControl "180+1"]
[EndTime "10:28:10 PDT"]
[Termination "MattyDPerrine won on time"]

1. e4 {[%clk 0:03:00.9]} 1... c5 {[%clk 0:02:59.8]} 2. Nf3 {[%clk 0:02:59.9]}
2... e6 {[%clk 0:03:00]} 3. d4 {[%clk 0:03:00]} 3... cxd4 {[%clk 0:03:00.9]} 4.
Nxd4 {[%clk 0:03:00.5]} 4... Nc6 {[%clk 0:02:54.7]} 5. Nc3 {[%clk 0:02:58.3]}
5... Qc7 {[%clk 0:02:54.9]} 6. Be3 {[%clk 0:02:55.3]} 6... a6 {[%clk 0:02:55.2]}
7. Qf3 {[%clk 0:02:39.5]} 7... Ne5 {[%clk 0:02:39.9]} 8. Qg3 {[%clk 0:02:37.7]}
8... d6 {[%clk 0:02:39.6]} 9. O-O-O {[%clk 0:02:32.7]} 9... h5 {[%clk 0:02:31]}
10. h4 {[%clk 0:02:23.2]} 10... Nf6 {[%clk 0:02:26.2]} 11. f3 {[%clk 0:02:22.1]}
11... b5 {[%clk 0:02:22.5]} 12. Kb1 {[%clk 0:01:59]} 12... Rb8 {[%clk
0:02:15.8]} 13. Ka1 {[%clk 0:01:01]} 13... b4 {[%clk 0:01:28.3]} 14. Nb1 {[%clk
0:01:00.8]} 14... Bd7 {[%clk 0:01:19.1]} 15. Rc1 {[%clk 0:00:41.9]} 15... Nc4
{[%clk 0:01:04.3]} 16. Bxc4 {[%clk 0:00:40.6]} 16... Qxc4 {[%clk 0:01:05.2]} 17.
Nd2 {[%clk 0:00:34.5]} 17... Qc8 {[%clk 0:00:42.4]} 18. c3 {[%clk 0:00:23.4]}
18... Qb7 {[%clk 0:00:25.2]} 19. cxb4 {[%clk 0:00:20.6]} 19... Qxb4 {[%clk
0:00:25.1]} 20. b3 {[%clk 0:00:11.2]} 20... g6 {[%clk 0:00:11.8]} 21. Nc6 {[%clk
0:00:08.7]} 21... Bxc6 {[%clk 0:00:09.4]} 22. Rxc6 {[%clk 0:00:08.5]} 22... Bg7
{[%clk 0:00:10]} 23. Kb1 {[%clk 0:00:06.6]} 23... Qa3 {[%clk 0:00:07.2]} 24. Nc4
{[%clk 0:00:06.7]} 24... Rxb3+ {[%clk 0:00:05.4]} 25. axb3 {[%clk 0:00:06.1]}
25... Qxb3+ {[%clk 0:00:06.3]} 26. Kc1 {[%clk 0:00:04.1]} 26... O-O {[%clk
0:00:06.7]} 27. Rd1 {[%clk 0:00:01.7]} 27... Qc3+ {[%clk 0:00:06.3]} 28. Kb1
{[%clk 0:00:01]} 28... Rb8+ {[%clk 0:00:06.9]} 29. Ka2 {[%clk 0:00:01.2]} 29...
Qb3+ {[%clk 0:00:07]} 30. Ka1 {[%clk 0:00:01.8]} 30... Qa4+ {[%clk 0:00:07.6]}
0-1

[Event "*** Titled Tuesday Blitz"]
[Site "Chess.com"]
[Date "2020.04.14"]
[Round "3"]
[White "HanSchut"]
[Black "SuperCheese"]
[Result "0-1"]
[WhiteElo "2224"]
[BlackElo "2524"]
[TimeControl "180+1"]
[EndTime "10:28:12 PDT"]
[Termination "SuperCheese won by resignation"]

1. e4 {[%clk 0:03:00.9]} 1... e5 {[%clk 0:02:43]} 2. Nf3 {[%clk 0:02:59.5]} 2...
Nc6 {[%clk 0:02:41.9]} 3. Bc4 {[%clk 0:03:00.1]} 3... Bc5 {[%clk 0:02:38.3]} 4.
b4 {[%clk 0:02:59.2]} 4... Bxb4 {[%clk 0:02:37.3]} 5. c3 {[%clk 0:02:59.8]} 5...
Ba5 {[%clk 0:02:31.7]} 6. d4 {[%clk 0:02:59.7]} 6... d6 {[%clk 0:02:31.6]} 7.
Qb3 {[%clk 0:02:59]} 7... Qd7 {[%clk 0:02:31.3]} 8. O-O {[%clk 0:02:53.3]} 8...
Bb6 {[%clk 0:02:27.2]} 9. Nbd2 {[%clk 0:02:47.7]} 9... exd4 {[%clk 0:02:07.4]}
10. cxd4 {[%clk 0:02:46.9]} 10... Na5 {[%clk 0:02:07.2]} 11. Qc2 {[%clk
0:02:45.1]} 11... Nxc4 {[%clk 0:02:07.3]} 12. Nxc4 {[%clk 0:02:45.8]} 12... Ne7
{[%clk 0:02:06]} 13. a4 {[%clk 0:02:45]} 13... Nc6 {[%clk 0:01:28.8]} 14. Bb2
{[%clk 0:02:01.5]} 14... Na5 {[%clk 0:01:25.2]} 15. d5 {[%clk 0:01:29.9]} 15...
Nxc4 {[%clk 0:01:04.3]} 16. Qxc4 {[%clk 0:01:29.5]} 16... O-O {[%clk 0:01:03.9]}
17. e5 {[%clk 0:01:29.7]} 17... Qg4 {[%clk 0:00:59.4]} 18. Qc3 {[%clk
0:01:18.6]} 18... f6 {[%clk 0:00:20.2]} 19. e6 {[%clk 0:01:03.2]} 19... c6
{[%clk 0:00:20]} 20. e7 {[%clk 0:00:37.9]} 20... Re8 {[%clk 0:00:19.3]} 21. dxc6
{[%clk 0:00:38.3]} 21... bxc6 {[%clk 0:00:16.1]} 22. Qxc6 {[%clk 0:00:31.9]}
22... Ba6 {[%clk 0:00:15.9]} 23. Rfe1 {[%clk 0:00:21.7]} 23... Rac8 {[%clk
0:00:14.9]} 24. Qxd6 {[%clk 0:00:21.6]} 24... Bb7 {[%clk 0:00:14.1]} 25. Qg3
{[%clk 0:00:14.1]} 25... Bxf3 {[%clk 0:00:11.5]} 26. Qxf3 {[%clk 0:00:12.8]}
26... Qxf3 {[%clk 0:00:11]} 27. gxf3 {[%clk 0:00:13.7]} 27... Rc2 {[%clk
0:00:10.3]} 28. Ba3 {[%clk 0:00:13.8]} 28... Rxf2 {[%clk 0:00:09.3]} 29. Kh1
{[%clk 0:00:13.1]} 29... Rxf3 {[%clk 0:00:09.1]} 30. a5 {[%clk 0:00:12.3]} 30...
Bxa5 {[%clk 0:00:08.6]} 31. Red1 {[%clk 0:00:12.9]} 31... Bb6 {[%clk 0:00:08.1]}
32. Rd7 {[%clk 0:00:11.6]} 32... Re3 {[%clk 0:00:06.9]} 33. Rad1 {[%clk
0:00:11.1]} 33... Kf7 {[%clk 0:00:06.8]} 34. Kg2 {[%clk 0:00:10.4]} 34... Rxa3
{[%clk 0:00:06.6]} 35. R1d2 {[%clk 0:00:09.7]} 35... Re3 {[%clk 0:00:06.4]} 0-1

[Event "*** Titled Tuesday Blitz"]
[Site "Chess.com"]
[Date "2020.04.14"]
[Round "3"]
[White "SameerMujumdar"]
[Black "Borsuk_Konstantin"]
[Result "1-0"]
[WhiteElo "2416"]
[BlackElo "2478"]
[TimeControl "180+1"]
[EndTime "10:28:15 PDT"]
[Termination "SameerMujumdar won by resignation"]

1. e4 {[%clk 0:03:00.9]} 1... e6 {[%clk 0:02:59.7]} 2. d4 {[%clk 0:03:00.4]}
2... d5 {[%clk 0:02:59.7]} 3. e5 {[%clk 0:03:01.3]} 3... c5 {[%clk 0:02:59.2]}
4. c3 {[%clk 0:03:02.2]} 4... Nc6 {[%clk 0:02:59.5]} 5. Nf3 {[%clk 0:03:02.3]}
5... Qb6 {[%clk 0:03:00]} 6. a3 {[%clk 0:03:02.5]} 6... c4 {[%clk 0:02:59.9]} 7.
Be2 {[%clk 0:03:01]} 7... Na5 {[%clk 0:03:00.1]} 8. O-O {[%clk 0:02:58.6]} 8...
Nb3 {[%clk 0:02:59.6]} 9. Ra2 {[%clk 0:02:58.9]} 9... Nxc1 {[%clk 0:02:59.7]}
10. Qxc1 {[%clk 0:02:58.2]} 10... Ne7 {[%clk 0:02:58.7]} 11. Nbd2 {[%clk
0:02:56.7]} 11... Nc6 {[%clk 0:02:58.8]} 12. Ra1 {[%clk 0:02:42.2]} 12... Na5
{[%clk 0:02:58.1]} 13. Bd1 {[%clk 0:02:40.8]} 13... Bd7 {[%clk 0:02:57.6]} 14.
Bc2 {[%clk 0:02:40.4]} 14... Be7 {[%clk 0:02:52.3]} 15. Rb1 {[%clk 0:02:40]}
15... Qc7 {[%clk 0:02:41.9]} 16. Ne1 {[%clk 0:02:36.1]} 16... f5 {[%clk
0:02:30.1]} 17. exf6 {[%clk 0:02:26.8]} 17... gxf6 {[%clk 0:02:31]} 18. f4
{[%clk 0:02:24.6]} 18... O-O-O {[%clk 0:02:28.1]} 19. Ndf3 {[%clk 0:02:14.7]}
19... Kb8 {[%clk 0:02:25.3]} 20. Qe3 {[%clk 0:02:11.6]} 20... Bd6 {[%clk
0:02:24]} 21. g3 {[%clk 0:02:10]} 21... h5 {[%clk 0:02:18.6]} 22. Nh4 {[%clk
0:02:07.6]} 22... e5 {[%clk 0:02:08.5]} 23. fxe5 {[%clk 0:02:03]} 23... fxe5
{[%clk 0:02:08]} 24. Nef3 {[%clk 0:01:55.4]} 24... e4 {[%clk 0:02:05]} 25. Ne1
{[%clk 0:01:51.6]} 25... Rhg8 {[%clk 0:01:53.6]} 26. Neg2 {[%clk 0:01:50.5]}
26... Bh3 {[%clk 0:01:42.1]} 27. Rf2 {[%clk 0:01:45.3]} 27... Nc6 {[%clk
0:01:37.6]} 28. Rbf1 {[%clk 0:01:43.1]} 28... Ne7 {[%clk 0:01:37.3]} 29. Rf7
{[%clk 0:01:42]} 29... Qb6 {[%clk 0:01:31]} 30. Qc1 {[%clk 0:01:35]} 30... Nc6
{[%clk 0:01:24.5]} 31. R1f6 {[%clk 0:01:33.6]} 31... Nxd4 {[%clk 0:01:15.5]} 32.
cxd4 {[%clk 0:01:32.9]} 32... Qxd4+ {[%clk 0:01:16.1]} 33. Kh1 {[%clk
0:01:24.9]} 33... Be5 {[%clk 0:01:02.2]} 34. Rf1 {[%clk 0:01:16.1]} 34... a6
{[%clk 0:00:45.9]} 35. b4 {[%clk 0:01:11.1]} 35... Qc3 {[%clk 0:00:32.3]} 36.
Nf5 {[%clk 0:01:05.3]} 36... h4 {[%clk 0:00:29.2]} 37. Nfxh4 {[%clk 0:00:56.6]}
37... Rh8 {[%clk 0:00:25.6]} 38. Ng6 {[%clk 0:00:53.1]} 38... Bxg3 {[%clk
0:00:17.5]} 39. Nxh8 {[%clk 0:00:49.6]} 39... Rxh8 {[%clk 0:00:15.6]} 40. Rf8+
{[%clk 0:00:49.3]} 40... Rxf8 {[%clk 0:00:12.4]} 41. Rxf8+ {[%clk 0:00:50.2]}
41... Ka7 {[%clk 0:00:12.3]} 42. Qe3+ {[%clk 0:00:49.7]} 42... Qxe3 {[%clk
0:00:09.3]} 43. Nxe3 {[%clk 0:00:50.6]} 43... Bd6 {[%clk 0:00:08]} 44. Rh8
{[%clk 0:00:47]} 44... d4 {[%clk 0:00:04.3]} 45. Rxh3 {[%clk 0:00:45.4]} 45...
d3 {[%clk 0:00:04.8]} 46. Nxc4 {[%clk 0:00:44.5]} 46... dxc2 {[%clk 0:00:04.3]}
47. Rc3 {[%clk 0:00:44]} 1-0